{"text_format":"1","workbook":"xlsx","n_sheets":5,"sheets":["Learn Output","Basic Data","Visual Data","Lecturer Data","Visual Lecturer"],"not_rendered":{"charts":2,"images":0,"macros":1,"external_links":0,"defined_names":0,"comments":0,"pivot_tables":0},"unopened":[],"bounds":{"document_bytes":16777216,"sheet_cells":100000,"rows_first":2000,"rows_last":500,"rows_between":2000,"halvings":0,"cell_chars":16384,"cell_head_chars":4096},"cells_cut":0,"cells_raw":0,"read":"whole","date_system":"1900"}

{"sheet":"Learn Output","index":0,"n_rows":72,"n_cols":8,"rows_kept":72,"cut":false,"hidden":false,"merged":[]}
["Friday, 9 June 2017, 2:49 PM"]
["Feedback Activities: 10"]
["Questions: 20"]
[]
["Label","Question","Responses"]
[null,"The module has helped me to develop my understanding of the subject","Definitely agree","Mostly agree","Neither agree nor disagree","Mostly disagree","Definitely disagree","Not applicable"]
[null,null,3,5,2,0,0,0]
[null,null,0.3,0.5,0.2,0,0,0]
[null,"Teaching methods eg practicals/ tutorials/ group work for this module helped me understand the subject","Definitely agree","Mostly agree","Neither agree nor disagree","Mostly disagree","Definitely disagree","Not applicable"]
[null,null,2,6,2,0,0,0]
[null,null,0.2,0.6,0.2,0,0,0]
[null,"The module helped me develop as an independent learner","Definitely agree","Mostly agree","Neither agree nor disagree","Mostly disagree","Definitely disagree","Not applicable"]
[null,null,2,7,1,0,0,0]
[null,null,0.2,0.7,0.1,0,0,0]
[null,"I was encouraged to plan my time and work schedules within the module requirements","Definitely agree","Mostly agree","Neither agree nor disagree","Mostly disagree","Definitely disagree","Not applicable"]
[null,null,1,5,2,2,0,0]
[null,null,0.1,0.5,0.2,0.2,0,0]
[null,"The module structure was clear","Definitely agree","Mostly agree","Neither agree nor disagree","Mostly disagree","Definitely disagree","Not applicable"]
[null,null,4,3,2,1,0,0]
[null,null,0.4,0.3,0.2,0.1,0,0]
[null,"The assessment requirements for the module were made clear in advance","Definitely agree","Mostly agree","Neither agree nor disagree","Mostly disagree","Definitely disagree","Not applicable"]
[null,null,5,4,1,0,0,0]
[null,null,0.5,0.4,0.1,0,0,0]
[null,"I found feedback useful (feedback may be provided electronically, orally, in lectures/tutorials/labs)","Definitely agree","Mostly agree","Neither agree nor disagree","Mostly disagree","Definitely disagree","Not applicable"]
[null,null,3,5,1,0,0,1]
[null,null,0.3,0.5,0.1,0,0,0.1]
[null,"The module was well organised","Definitely agree","Mostly agree","Neither agree nor disagree","Mostly disagree","Definitely disagree","Not applicable"]
[null,null,4,5,0,1,0,0]
[null,null,0.4,0.5,0,0.1,0,0]
[null,"The library resources and services were good enough for this module","Definitely agree","Mostly agree","Neither agree nor disagree","Mostly disagree","Definitely disagree","Not applicable"]
[null,null,1,4,4,0,0,1]
[null,null,0.1,0.4,0.4,0,0,0.1]
[null,"I have been able to access general IT resources when I needed to","Definitely agree","Mostly agree","Neither agree nor disagree","Mostly disagree","Definitely disagree","Not applicable"]
[null,null,5,4,1,0,0,0]
[null,null,0.5,0.4,0.1,0,0,0]
[null,"The teaching rooms for this module were fit for purpose","Definitely agree","Mostly agree","Neither agree nor disagree","Mostly disagree","Definitely disagree","Not applicable"]
[null,null,2,5,0,2,1,0]
[null,null,0.2,0.5,0,0.2,0.1,0]
[null,"Overall, this module offered me a high quality learning opportunity","Definitely agree","Mostly agree","Neither agree nor disagree","Mostly disagree","Definitely disagree","Not applicable"]
[null,null,1,6,3,0,0,0]
[null,null,0.1,0.6,0.3,0,0,0]
[null,"What did you like about this module?","The teacher is really perceptive and patient"]
[null,null,"Thorough explanations"]
[null,null,"clear structure"]
[null,null,"The approach ability of the staff.  "]
[null,null,"Lecturer was engaging, enthusiastic and helpful"]
[null,null,"a different view of stats that was more practical and allowed me to view the data is a different way"]
[null,"How could the module be improved?"]
[null,null,"3 hours a week not needed"]
[null,null,"cooler classroom"]
[null,null,"Slightly increased pace "]
[null,null,"none"]
[null,null,"could do with being in a lecture room occasionally and not sat at computers the whole time.\n<br />coursework question available from the start.\n<br />experiments to choose from not just free choice of anything.\n<br />more emphasis needs to be on the methods which are different for paired or independent groups."]
[null,null,"Sometimes the discussion is too long"]
[null,"Davide Filingeri: communicated clearly","Definitely agree","Mostly agree","Neither agree nor disagree","Mostly disagree","Definitely disagree","Not applicable"]
[null,null,3,7,0,0,0,0]
[null,null,0.3,0.7,0,0,0,0]
[null,"was enthusiastic about the subject","Definitely agree","Mostly agree","Neither agree nor disagree","Mostly disagree","Definitely disagree","Not applicable"]
[null,null,8,2,0,0,0,0]
[null,null,0.8,0.2,0,0,0,0]
[null,"responded to requests for advice and support ","Definitely agree","Mostly agree","Neither agree nor disagree","Mostly disagree","Definitely disagree","Not applicable"]
[null,null,6,4,0,0,0,0]
[null,null,0.6,0.4,0,0,0,0]
[null,"provided detailed comments on my work","Definitely agree","Mostly agree","Neither agree nor disagree","Mostly disagree","Definitely disagree","Not applicable"]
[null,null,3,5,0,0,0,2]
[null,null,0.3,0.5,0,0,0,0.2]
[null,"provided feedback by the published date","Definitely agree","Mostly agree","Neither agree nor disagree","Mostly disagree","Definitely disagree","Not applicable"]
[null,null,2,3,1,0,0,4]
[null,null,0.2,0.3,0.1,0,0,0.4]
[null,"was good at explaining things","Definitely agree","Mostly agree","Neither agree nor disagree","Mostly disagree","Definitely disagree","Not applicable"]
[null,null,5,5,0,0,0,0]
[null,null,0.5,0.5,0,0,0,0]

{"sheet":"Basic Data","index":1,"n_rows":14,"n_cols":15,"rows_kept":14,"cut":false,"hidden":false,"merged":[[0,7,0,9],[0,2,0,5],[0,0,0,1]]}
["16DSB112 Experiment Design & Analysis",null,"Total number of students =",null,null,null,29,"Response rate =",null,null,{"$f":"(I10/G1)","v":0.34482758620689657}]
[null,null,"Definitely agree","Mostly agree","Neither agree nor disagree","Mostly disagree","Definitely disagree","Not applicable","Total","Not app. removed","Score",null,"% Agree","% Neither agree nor disagree","% Disagree"]
[1,{"$f":"'Learn Output'!B6","v":"The module has helped me to develop my understanding of the subject"},{"$f":"'Learn Output'!C7","v":3},{"$f":"'Learn Output'!D7","v":5},{"$f":"'Learn Output'!E7","v":2},{"$f":"'Learn Output'!F7","v":0},{"$f":"'Learn Output'!G7","v":0},{"$f":"'Learn Output'!H7","v":0},{"$f":"SUM(C3:H3)","v":10},{"$f":"SUM(C3:G3)","v":10},{"$f":"((C3*5)+(D3*4)+(E3*3)+(F3*2)+(G3*1))/J3","v":4.0999999999999996},null,{"$f":"((C3+D3)/J3)*100","v":80},{"$f":"(E3/J3)*100","v":20},{"$f":"((F3+G3)/J3)*100","v":0}]
[2,{"$f":"'Learn Output'!B9","v":"Teaching methods eg practicals/ tutorials/ group work for this module helped me understand the subject"},{"$f":"'Learn Output'!C10","v":2},{"$f":"'Learn Output'!D10","v":6},{"$f":"'Learn Output'!E10","v":2},{"$f":"'Learn Output'!F10","v":0},{"$f":"'Learn Output'!G10","v":0},{"$f":"'Learn Output'!H10","v":0},{"$f":"SUM(C4:H4)","v":10},{"$f":"SUM(C4:G4)","v":10},{"$f":"((C4*5)+(D4*4)+(E4*3)+(F4*2)+(G4*1))/J4","v":4},null,{"$f":"((C4+D4)/J4)*100","v":80},{"$f":"(E4/J4)*100","v":20},{"$f":"((F4+G4)/J4)*100","v":0}]
[3,{"$f":"'Learn Output'!B12","v":"The module helped me develop as an independent learner"},{"$f":"'Learn Output'!C13","v":2},{"$f":"'Learn Output'!D13","v":7},{"$f":"'Learn Output'!E13","v":1},{"$f":"'Learn Output'!F13","v":0},{"$f":"'Learn Output'!G13","v":0},{"$f":"'Learn Output'!H13","v":0},10,10,4.0999999999999996,null,90,10,0]
[4,{"$f":"'Learn Output'!B15","v":"I was encouraged to plan my time and work schedules within the module requirements"},{"$f":"'Learn Output'!C16","v":1},{"$f":"'Learn Output'!D16","v":5},{"$f":"'Learn Output'!E16","v":2},{"$f":"'Learn Output'!F16","v":2},{"$f":"'Learn Output'!G16","v":0},{"$f":"'Learn Output'!H16","v":0},10,10,3.5,null,60,20,20]
[5,{"$f":"'Learn Output'!B18","v":"The module structure was clear"},{"$f":"'Learn Output'!C19","v":4},{"$f":"'Learn Output'!D19","v":3},{"$f":"'Learn Output'!E19","v":2},{"$f":"'Learn Output'!F19","v":1},{"$f":"'Learn Output'!G19","v":0},{"$f":"'Learn Output'!H19","v":0},10,10,4,null,70,20,10]
[6,{"$f":"'Learn Output'!B21","v":"The assessment requirements for the module were made clear in advance"},{"$f":"'Learn Output'!C22","v":5},{"$f":"'Learn Output'!D22","v":4},{"$f":"'Learn Output'!E22","v":1},{"$f":"'Learn Output'!F22","v":0},{"$f":"'Learn Output'!G22","v":0},{"$f":"'Learn Output'!H22","v":0},10,10,4.4000000000000004,null,90,10,0]
[7,{"$f":"'Learn Output'!B24","v":"I found feedback useful (feedback may be provided electronically, orally, in lectures/tutorials/labs)"},{"$f":"'Learn Output'!C25","v":3},{"$f":"'Learn Output'!D25","v":5},{"$f":"'Learn Output'!E25","v":1},{"$f":"'Learn Output'!F25","v":0},{"$f":"'Learn Output'!G25","v":0},{"$f":"'Learn Output'!H25","v":1},10,9,4.2222222222222223,null,88.888888888888886,11.111111111111111,0]
[8,{"$f":"'Learn Output'!B27","v":"The module was well organised"},{"$f":"'Learn Output'!C28","v":4},{"$f":"'Learn Output'!D28","v":5},{"$f":"'Learn Output'!E28","v":0},{"$f":"'Learn Output'!F28","v":1},{"$f":"'Learn Output'!G28","v":0},{"$f":"'Learn Output'!H28","v":0},10,10,4.2,null,90,0,10]
[9,{"$f":"'Learn Output'!B30","v":"The library resources and services were good enough for this module"},{"$f":"'Learn Output'!C31","v":1},{"$f":"'Learn Output'!D31","v":4},{"$f":"'Learn Output'!E31","v":4},{"$f":"'Learn Output'!F31","v":0},{"$f":"'Learn Output'!G31","v":0},{"$f":"'Learn Output'!H31","v":1},{"$f":"SUM(C11:H11)","v":10},{"$f":"SUM(C11:G11)","v":9},3.6666666666666665,null,{"$f":"((C11+D11)/J11)*100","v":55.555555555555557},{"$f":"(E11/J11)*100","v":44.444444444444443},{"$f":"((F11+G11)/J11)*100","v":0}]
[10,{"$f":"'Learn Output'!B33","v":"I have been able to access general IT resources when I needed to"},{"$f":"'Learn Output'!C34","v":5},{"$f":"'Learn Output'!D34","v":4},{"$f":"'Learn Output'!E34","v":1},{"$f":"'Learn Output'!F34","v":0},{"$f":"'Learn Output'!G34","v":0},{"$f":"'Learn Output'!H34","v":0},10,10,4.4000000000000004,null,90,10,0]
[11,{"$f":"'Learn Output'!B36","v":"The teaching rooms for this module were fit for purpose"},{"$f":"'Learn Output'!C37","v":2},{"$f":"'Learn Output'!D37","v":5},{"$f":"'Learn Output'!E37","v":0},{"$f":"'Learn Output'!F37","v":2},{"$f":"'Learn Output'!G37","v":1},{"$f":"'Learn Output'!H37","v":0},10,10,3.5,null,70,0,30]
[12,{"$f":"'Learn Output'!B39","v":"Overall, this module offered me a high quality learning opportunity"},{"$f":"'Learn Output'!C40","v":1},{"$f":"'Learn Output'!D40","v":6},{"$f":"'Learn Output'!E40","v":3},{"$f":"'Learn Output'!F40","v":0},{"$f":"'Learn Output'!G40","v":0},{"$f":"'Learn Output'!H40","v":0},10,10,3.8,null,70,30,0]

{"sheet":"Visual Data","index":2,"n_rows":14,"n_cols":11,"rows_kept":14,"cut":false,"hidden":false,"merged":[[0,0,0,1],[0,2,0,5],[0,7,0,9]]}
[{"$f":"'Basic Data'!A1:B1","v":"16DSB112 Experiment Design & Analysis"},null,{"$f":"'Basic Data'!C1:F1","v":"Total number of students ="},null,null,null,{"$f":"'Basic Data'!G1","v":29},{"$f":"'Basic Data'!H1:J1","v":"Response rate ="},null,null,{"$f":"'Basic Data'!K1","v":0.34482758620689657}]
[]
[1,{"$f":"'Learn Output'!B6","v":"The module has helped me to develop my understanding of the subject"}]
[2,{"$f":"'Learn Output'!B9","v":"Teaching methods eg practicals/ tutorials/ group work for this module helped me understand the subject"}]
[3,{"$f":"'Learn Output'!B12","v":"The module helped me develop as an independent learner"}]
[4,{"$f":"'Learn Output'!B15","v":"I was encouraged to plan my time and work schedules within the module requirements"}]
[5,{"$f":"'Learn Output'!B18","v":"The module structure was clear"}]
[6,{"$f":"'Learn Output'!B21","v":"The assessment requirements for the module were made clear in advance"}]
[7,{"$f":"'Learn Output'!B24","v":"I found feedback useful (feedback may be provided electronically, orally, in lectures/tutorials/labs)"}]
[8,{"$f":"'Learn Output'!B27","v":"The module was well organised"}]
[9,{"$f":"'Learn Output'!B30","v":"The library resources and services were good enough for this module"}]
[10,{"$f":"'Learn Output'!B33","v":"I have been able to access general IT resources when I needed to"}]
[11,{"$f":"'Learn Output'!B36","v":"The teaching rooms for this module were fit for purpose"}]
[12,{"$f":"'Learn Output'!B39","v":"Overall, this module offered me a high quality learning opportunity"}]

{"sheet":"Lecturer Data","index":3,"n_rows":37,"n_cols":15,"rows_kept":37,"cut":false,"hidden":false,"merged":[[0,0,0,1],[0,2,0,5],[0,8,0,11]]}
[{"$f":"'Basic Data'!A1:B1","v":"16DSB112 Experiment Design & Analysis"},null,{"$f":"'Basic Data'!C1:F1","v":"Total number of students ="},null,null,null,{"$f":"'Basic Data'!G1","v":29},null,{"$f":"'Basic Data'!H1:J1","v":0},null,null,null,{"$f":"'Basic Data'!K1","v":0.34482758620689657}]
[null,null,"Definitely agree","Mostly agree","Neither agree nor disagree","Mostly disagree","Definitely disagree","Not Applicable","Total","Total-NA","Score",null,"% Agree","% Neither agree nor disagree","% Disagree"]
[null,"Davide Filingeri"]
[null,"Davide Filingeri: communicated clearly",3,7,0,0,0,0,{"$f":"SUM(C4:H4)","v":10},{"$f":"SUM(C4:G4)","v":10},{"$f":"((C4*5)+(D4*4)+(E4*3)+(F4*2)+G4)/J4","v":4.3},null,{"$f":"((C4+D4)/J4)*100","v":100},{"$f":"(E4/J4)*100","v":0},{"$f":"((F4+G4)/J4)*100","v":0}]
[null,"was enthusiastic about the subject",8,2,0,0,0,0,{"$f":"SUM(C5:H5)","v":10},{"$f":"SUM(C5:G5)","v":10},{"$f":"((C5*5)+(D5*4)+(E5*3)+(F5*2)+G5)/J5","v":4.8},null,{"$f":"((C5+D5)/J5)*100","v":100},{"$f":"(E5/J5)*100","v":0},{"$f":"((F5+G5)/J5)*100","v":0}]
[null,"responded to requests for advice and support",6,4,0,0,0,0,10,10,4.5999999999999996,null,100,0,0]
[null,"provided detailed comments on my work",3,5,0,0,0,2,10,8,4.375,null,100,0,0]
[null,"provided feedback by the published date",2,3,1,0,0,4,10,6,4.166666666666667,null,83.333333333333343,16.666666666666664,0]
[null,"was good at explaining things",5,5,0,0,0,0,10,10,4.5,null,100,0,0]
[]
[null,null,null,null,null,null,null,null,{"$f":"SUM(C11:H11)","v":0},{"$f":"SUM(C11:G11)","v":0},{"$f":"((C11*5)+(D11*4)+(E11*3)+(F11*2)+G11)/J11","v":{"$error":"#DIV/0!"}},null,{"$f":"((C11+D11)/J11)*100","v":{"$error":"#DIV/0!"}},{"$f":"(E11/J11)*100","v":{"$error":"#DIV/0!"}},{"$f":"((F11+G11)/J11)*100","v":{"$error":"#DIV/0!"}}]
[null,null,null,null,null,null,null,null,{"$f":"SUM(C12:H12)","v":0},{"$f":"SUM(C12:G12)","v":0},{"$f":"((C12*5)+(D12*4)+(E12*3)+(F12*2)+G12)/J12","v":{"$error":"#DIV/0!"}},null,{"$f":"((C12+D12)/J12)*100","v":{"$error":"#DIV/0!"}},{"$f":"(E12/J12)*100","v":{"$error":"#DIV/0!"}},{"$f":"((F12+G12)/J12)*100","v":{"$error":"#DIV/0!"}}]
[null,null,null,null,null,null,null,null,0,0,{"$error":"#DIV/0!"},null,{"$error":"#DIV/0!"},{"$error":"#DIV/0!"},{"$error":"#DIV/0!"}]
[null,null,null,null,null,null,null,null,0,0,{"$error":"#DIV/0!"},null,{"$error":"#DIV/0!"},{"$error":"#DIV/0!"},{"$error":"#DIV/0!"}]
[null,null,null,null,null,null,null,null,0,0,{"$error":"#DIV/0!"},null,{"$error":"#DIV/0!"},{"$error":"#DIV/0!"},{"$error":"#DIV/0!"}]
[null,null,null,null,null,null,null,null,0,0,{"$error":"#DIV/0!"},null,{"$error":"#DIV/0!"},{"$error":"#DIV/0!"},{"$error":"#DIV/0!"}]
[]
[null,null,null,null,null,null,null,null,{"$f":"SUM(C18:H18)","v":0},{"$f":"SUM(C18:G18)","v":0},{"$f":"((C18*5)+(D18*4)+(E18*3)+(F18*2)+G18)/J18","v":{"$error":"#DIV/0!"}},null,{"$f":"((C18+D18)/J18)*100","v":{"$error":"#DIV/0!"}},{"$f":"(E18/J18)*100","v":{"$error":"#DIV/0!"}},{"$f":"((F18+G18)/J18)*100","v":{"$error":"#DIV/0!"}}]
[null,null,null,null,null,null,null,null,{"$f":"SUM(C19:H19)","v":0},{"$f":"SUM(C19:G19)","v":0},{"$f":"((C19*5)+(D19*4)+(E19*3)+(F19*2)+G19)/J19","v":{"$error":"#DIV/0!"}},null,{"$f":"((C19+D19)/J19)*100","v":{"$error":"#DIV/0!"}},{"$f":"(E19/J19)*100","v":{"$error":"#DIV/0!"}},{"$f":"((F19+G19)/J19)*100","v":{"$error":"#DIV/0!"}}]
[null,null,null,null,null,null,null,null,0,0,{"$error":"#DIV/0!"},null,{"$error":"#DIV/0!"},{"$error":"#DIV/0!"},{"$error":"#DIV/0!"}]
[null,null,null,null,null,null,null,null,0,0,{"$error":"#DIV/0!"},null,{"$error":"#DIV/0!"},{"$error":"#DIV/0!"},{"$error":"#DIV/0!"}]
[null,null,null,null,null,null,null,null,0,0,{"$error":"#DIV/0!"},null,{"$error":"#DIV/0!"},{"$error":"#DIV/0!"},{"$error":"#DIV/0!"}]
[null,null,null,null,null,null,null,null,0,0,{"$error":"#DIV/0!"},null,{"$error":"#DIV/0!"},{"$error":"#DIV/0!"},{"$error":"#DIV/0!"}]
[]
[null,null,null,null,null,null,null,null,{"$f":"SUM(C25:H25)","v":0},{"$f":"SUM(C25:G25)","v":0},{"$f":"((C25*5)+(D25*4)+(E25*3)+(F25*2)+G25)/J25","v":{"$error":"#DIV/0!"}},null,{"$f":"((C25+D25)/J25)*100","v":{"$error":"#DIV/0!"}},{"$f":"(E25/J25)*100","v":{"$error":"#DIV/0!"}},{"$f":"((F25+G25)/J25)*100","v":{"$error":"#DIV/0!"}}]
[null,null,null,null,null,null,null,null,{"$f":"SUM(C26:H26)","v":0},{"$f":"SUM(C26:G26)","v":0},{"$f":"((C26*5)+(D26*4)+(E26*3)+(F26*2)+G26)/J26","v":{"$error":"#DIV/0!"}},null,{"$f":"((C26+D26)/J26)*100","v":{"$error":"#DIV/0!"}},{"$f":"(E26/J26)*100","v":{"$error":"#DIV/0!"}},{"$f":"((F26+G26)/J26)*100","v":{"$error":"#DIV/0!"}}]
[null,null,null,null,null,null,null,null,0,0,{"$error":"#DIV/0!"},null,{"$error":"#DIV/0!"},{"$error":"#DIV/0!"},{"$error":"#DIV/0!"}]
[null,null,null,null,null,null,null,null,0,0,{"$error":"#DIV/0!"},null,{"$error":"#DIV/0!"},{"$error":"#DIV/0!"},{"$error":"#DIV/0!"}]
[null,null,null,null,null,null,null,null,0,0,{"$error":"#DIV/0!"},null,{"$error":"#DIV/0!"},{"$error":"#DIV/0!"},{"$error":"#DIV/0!"}]
[null,null,null,null,null,null,null,null,0,0,{"$error":"#DIV/0!"},null,{"$error":"#DIV/0!"},{"$error":"#DIV/0!"},{"$error":"#DIV/0!"}]
[]
[null,null,null,null,null,null,null,null,{"$f":"SUM(C32:G32)","v":0},null,{"$f":"((C32*5)+(D32*4)+(E32*3)+(F32*2)+G32)/I32","v":{"$error":"#DIV/0!"}},null,{"$f":"((C32+D32)/I32)*100","v":{"$error":"#DIV/0!"}},{"$f":"(E32/I32)*100","v":{"$error":"#DIV/0!"}},{"$f":"((F32+G32)/I32)*100","v":{"$error":"#DIV/0!"}}]
[null,null,null,null,null,null,null,null,{"$f":"SUM(C33:G33)","v":0},null,{"$error":"#DIV/0!"},null,{"$error":"#DIV/0!"},{"$error":"#DIV/0!"},{"$error":"#DIV/0!"}]
[null,null,null,null,null,null,null,null,{"$f":"SUM(C34:G34)","v":0},null,{"$error":"#DIV/0!"},null,{"$error":"#DIV/0!"},{"$error":"#DIV/0!"},{"$error":"#DIV/0!"}]
[null,null,null,null,null,null,null,null,{"$f":"SUM(C35:G35)","v":0},null,{"$error":"#DIV/0!"},null,{"$error":"#DIV/0!"},{"$error":"#DIV/0!"},{"$error":"#DIV/0!"}]
[null,null,null,null,null,null,null,null,{"$f":"SUM(C36:G36)","v":0},null,{"$error":"#DIV/0!"},null,{"$error":"#DIV/0!"},{"$error":"#DIV/0!"},{"$error":"#DIV/0!"}]
[null,null,null,null,null,null,null,null,0,null,{"$error":"#DIV/0!"},null,{"$error":"#DIV/0!"},{"$error":"#DIV/0!"},{"$error":"#DIV/0!"}]

{"sheet":"Visual Lecturer","index":4,"n_rows":9,"n_cols":11,"rows_kept":9,"cut":false,"hidden":false,"merged":[[0,0,0,1],[0,2,0,5],[0,7,0,9]]}
[{"$f":"'Basic Data'!A1:B1","v":"16DSB112 Experiment Design & Analysis"},null,{"$f":"'Basic Data'!C1:F1","v":"Total number of students ="},null,null,null,{"$f":"'Basic Data'!G1","v":29},{"$f":"'Basic Data'!H1:J1","v":"Response rate ="},null,null,{"$f":"'Basic Data'!K1","v":0.34482758620689657}]
[]
[null,"Davide Filingeri"]
[null,"Davide Filingeri: communicated clearly"]
[null,"was enthusiastic about the subject"]
[null,"responded to requests for advice and support"]
[null,"provided detailed comments on my work"]
[null,"provided feedback by the published date"]
[null,"was good at explaining things"]